fUST/lending_fUST_20250817
["ID","MTS","AMOUNT","RATE_DAILY","PERIOD"]
[379718907,1755383451229,-480.0,0.00020963,2]
[379718908,1755383451238,-151.0,0.00020963,2]
[379718909,1755383451247,-151.0,0.00020963,2]
[379718910,1755383451257,-214.858764,0.00020963,2]
[379718911,1755383451267,-214.858764,0.00020963,2]
[379718912,1755383451276,-151.0,0.00020963,2]
[379718913,1755383451285,-151.0,0.00020963,2]
[379718914,1755383451295,-431.9034523,0.00020964,2]
[379718915,1755383451304,-431.9034523,0.00020964,2]
[379718916,1755383451313,-431.9034523,0.00020964,2]
[379718917,1755383451323,-431.0683043,0.00020964,2]
[379718918,1755383451332,-654.1,0.00020972,3]
[379718919,1755383451341,-500.0,0.00020973,2]
[379718920,1755383451351,-500.0,0.00020973,2]
[379718921,1755383451360,-500.0,0.00020973,2]
[379718922,1755383451369,-500.0,0.00020973,2]
[379718923,1755383451379,-609.34934777,0.00020973,2]
[379718924,1755383451388,-151.0,0.00020973,2]
[379718925,1755383451398,-151.0,0.00020973,2]
[379718926,1755383451407,-151.0,0.00020973,2]
[379718927,1755383451416,-151.0,0.00020976,2]
[379718928,1755383451426,-100000.0,0.0002099,2]
[379718929,1755383451435,-151.0,0.0002099,2]
[379718930,1755383451445,-151.0,0.0002099,2]
[379718931,1755383451454,-151.0,0.0002099,2]
[379718932,1755383451464,-378.048425,0.0002099,2]
[379718933,1755383451474,-378.048425,0.0002099,2]
[379718934,1755383451483,-158.680408,0.0002099,2]
[379718935,1755383451493,-151.0,0.0002099,2]
[379718936,1755383451502,-151.0,0.0002099,2]
[379718937,1755383451512,-179.868465,0.00020998,2]
[379718938,1755383451522,-150.0,0.00021,2]
[379718939,1755383451531,-151.0,0.00021,4]
[379718940,1755383451541,-179.868465,0.00021,30]
[379718941,1755383451550,-400.82151402,0.00021,2]
[379718942,1755383451560,-323.29795255,0.00021,2]
[379718943,1755383451569,-160.0,0.00021006,2]
[379718944,1755383451578,-1000.0,0.00021021,2]
[379718945,1755383451588,-1000.0,0.00021021,2]
[379718946,1755383451597,-504.12150487,0.00021021,2]
[379718947,1755383451607,-1000.0,0.00021021,2]
[379718948,1755383451616,-1000.0,0.00021021,2]
[379718949,1755383451626,-1000.0,0.00021021,2]
[379718950,1755383451635,-1000.0,0.00021021,2]
[379718951,1755383451646,-505.08806189,0.00021021,2]
[379718952,1755383451657,-324.25194478,0.00021021,2]
[379718953,1755383451666,-502.43436582,0.00021021,2]
[379718954,1755383451676,-1000.0,0.00021021,2]
[379718955,1755383451685,-1000.0,0.00021021,2]
[379718956,1755383451695,-1000.0,0.00021021,2]
[379718957,1755383451704,-1000.0,0.00021021,2]
[379718958,1755383451713,-1000.0,0.00021021,2]
[379718959,1755383451723,-601.50920272,0.00021021,2]
[379718960,1755383451734,-151.0,0.0002103,2]
[379718961,1755383451744,-151.0,0.0002103,2]
[379718962,1755383451753,-214.858764,0.0002103,2]
[379718963,1755383451762,-214.858764,0.0002103,2]
[379718964,1755383451771,-151.0,0.0002103,2]
[379718965,1755383451781,-431.9034523,0.0002103,2]
[379718966,1755383451790,-431.9034523,0.0002103,2]
[379718967,1755383451799,-431.9034523,0.0002103,2]
[379718968,1755383451809,-431.9034523,0.0002103,2]
[379718969,1755383451818,-773.8361983,0.0002103,2]
[379718970,1755383451827,-150.0,0.00021069,2]
[379718971,1755383451837,-240.27,0.00021069,2]
[379718972,1755383451846,-150.028,0.00021069,2]
[379718973,1755383451856,-150.101,0.00021069,2]
[379718974,1755383451865,-150.0,0.00021069,2]
[379718975,1755383451876,-219.175,0.00021069,2]
[379718976,1755383451887,-271.0,0.00021085,2]
[379718977,1755383451900,-151.0,0.000211,4]
[379718978,1755383451935,-151.0,0.000211,4]
[379718979,1755383451970,-313.13668954,0.00021101,2]
[379718980,1755383451982,-271.0,0.00021105,2]
[379718981,1755383451992,-654.1,0.00021176,3]
[379718982,1755383452002,-172.48783191,0.00021205,2]
[379718983,1755383452011,-676.97,0.0002123,2]
[379718984,1755383452020,-615.55,0.0002123,2]
[379718985,1755383452030,-480.0,0.0002123,2]
[379718986,1755383452040,-634.32,0.0002123,2]
[379718987,1755383452049,-1632.4,0.0002123,2]
[379718988,1755383452059,-2204.33,0.0002123,2]
[379718989,1755383452068,-480.0,0.0002123,2]
[379718990,1755383452078,-1659.35,0.0002123,2]
[379718991,1755383452087,-577.74,0.0002123,2]
[379718992,1755383452096,-524.5,0.0002123,2]
[379718993,1755383452105,-779.71,0.0002123,2]
[379718994,1755383452115,-480.0,0.0002123,2]
[379718995,1755383452124,-2362.44,0.0002123,2]
[379718996,1755383452134,-709.36,0.0002123,2]
[379718997,1755383452143,-4481.99,0.0002123,2]
[379718998,1755383452153,-480.0,0.0002123,2]
[379718999,1755383452163,-480.0,0.0002123,2]
[379719000,1755383452172,-946.11,0.0002123,2]
[379719001,1755383452182,-1036.28,0.00021231,2]
[379719002,1755383452191,-518.45,0.00021231,2]
[379719003,1755383452200,-480.0,0.00021231,2]
[379719004,1755383452210,-480.0,0.00021231,2]
[379719005,1755383452220,-1205.63,0.00021231,2]
[379719006,1755383452230,-480.0,0.00021231,2]
[379719007,1755383452240,-151.0,0.00021231,2]
[379719008,1755383452249,-480.0,0.00021231,2]
[379719009,1755383452259,-480.0,0.00021231,2]
[379719010,1755383452268,-480.0,0.00021231,2]
[379719011,1755383452277,-151.0,0.00021231,2]
[379719012,1755383452286,-480.0,0.00021231,2]
[379719013,1755383452297,-588.5,0.00021231,2]
[379719014,1755383452307,-802.43,0.00021231,2]
[379719015,1755383452316,-854.37,0.00021231,2]
[379719016,1755383452326,-1358.18,0.00021231,2]
[379719017,1755383452335,-789.9,0.00021231,2]
[379719018,1755383452344,-496.73,0.00021231,2]
[379719019,1755383452354,-480.0,0.00021231,2]
[379719020,1755383452363,-1300.78,0.00021231,2]
[379719021,1755383452372,-543.3,0.00021231,2]
[379719022,1755383452382,-480.0,0.00021231,2]
[379719023,1755383452391,-798.37,0.00021231,2]
[379719024,1755383452401,-480.0,0.00021231,2]
[379719025,1755383452411,-480.0,0.00021231,2]
[379719026,1755383452420,-151.0,0.00021231,2]
[379719027,1755383452430,-519.09,0.00021231,2]
[379719028,1755383452439,-151.0,0.00021231,2]
[379719030,1755383452448,-782.49,0.00021231,2]
[379719032,1755383452458,-954.7,0.00021231,2]
[379719034,1755383452468,-566.02,0.00021231,2]
[379719036,1755383452477,-542.25,0.00021231,2]
[379719038,1755383452486,-759.04,0.00021231,2]
[379719040,1755383452495,-2917.42,0.00021231,2]
[379719042,1755383452504,-480.0,0.00021231,2]
[379719044,1755383452513,-530.19,0.00021231,2]
[379719046,1755383452522,-480.0,0.00021231,2]
[379719048,1755383452531,-658.32,0.00021231,2]
[379719050,1755383452540,-151.0,0.00021231,2]
[379719052,1755383452549,-813.14,0.00021231,2]
[379719054,1755383452559,-480.0,0.00021231,2]
[379719056,1755383452568,-599.63,0.00021231,2]
[379719058,1755383452577,-480.0,0.00021231,2]
[379719060,1755383452587,-987.94,0.00021231,2]
[379719062,1755383452596,-480.0,0.00021231,2]
[379719064,1755383452605,-480.0,0.00021231,2]
[379719066,1755383452614,-305.91501878,0.00021231,2]
[379719068,1755383452623,-631.64,0.00021231,2]
[379719070,1755383452632,-8799.71,0.00021231,2]
[379719072,1755383452642,-901.2,0.00021231,2]
[379719074,1755383452655,-480.0,0.00021231,2]
[379719076,1755383452664,-480.0,0.00021231,2]
[379719078,1755383452673,-639.74,0.00021231,2]
[379719080,1755383452682,-874.96,0.00021231,2]
[379719083,1755383452696,-765.99,0.00021231,2]
[379719085,1755383452705,-480.0,0.00021231,2]
[379719087,1755383452714,-925.97,0.00021231,2]
[379719089,1755383452723,-758.54,0.00021231,2]
[379719091,1755383452733,-480.0,0.00021231,2]
[379719093,1755383452743,-659.8,0.00021231,2]
[379719094,1755383452753,-529.3,0.00021231,2]
[379719097,1755383452763,-411.47316554,0.00021231,2]
[379719099,1755383452772,-480.0,0.00021231,2]
[379719101,1755383452781,-510.49356383,0.00021231,2]
[379719103,1755383452791,-480.0,0.00021231,2]
[379719104,1755383452800,-257.077859,0.00021231,2]
[379719106,1755383452811,-1069.66,0.00021231,2]
[379719108,1755383452821,-151.0,0.00021232,2]
[379719111,1755383452831,-151.0,0.00021232,2]
[379719113,1755383452840,-151.0,0.00021232,2]
[379719115,1755383452848,-480.0,0.00021232,2]
[379719117,1755383452857,-480.0,0.00021232,2]
[379719119,1755383452866,-480.0,0.00021232,2]
[379719121,1755383452875,-480.0,0.00021232,2]
[379719128,1755383452999,-480.0,0.00021232,2]
[379719129,1755383453008,-509.41,0.00021232,2]
[379719130,1755383453017,-480.0,0.00021232,2]
[379719131,1755383453026,-480.0,0.00021232,2]
[379719132,1755383453036,-1539.09,0.00021232,2]
[379719133,1755383453046,-710.45,0.00021232,2]
[379719134,1755383453055,-614.89,0.00021232,2]
[379719135,1755383453064,-564.94,0.00021232,2]
[379719136,1755383453073,-480.0,0.00021232,2]
[379719137,1755383453082,-480.0,0.00021232,2]
[379719138,1755383453091,-2765.82,0.00021232,2]
[379719140,1755383453100,-480.0,0.00021232,2]
[379719142,1755383453109,-623.9,0.00021232,2]
[379719144,1755383453118,-480.0,0.00021232,2]
[379719146,1755383453128,-480.0,0.00021232,2]
[379719148,1755383453137,-480.0,0.00021232,2]
[379719150,1755383453146,-230.19014635,0.00021233,2]
[379719152,1755383453155,-480.0,0.00021233,2]
[379719154,1755383453164,-480.0,0.00021233,2]
[379719156,1755383453174,-480.0,0.00021233,2]
[379719158,1755383453183,-480.0,0.00021233,2]
[379719160,1755383453192,-480.0,0.00021233,2]
[379719162,1755383453201,-480.0,0.00021233,2]
[379719164,1755383453210,-671.72,0.00021233,2]
[379719166,1755383453219,-480.0,0.00021233,2]
[379719168,1755383453228,-480.0,0.00021233,2]
[379719170,1755383453237,-480.0,0.00021233,2]
[379719171,1755383453247,-390.16240597,0.00021233,2]
[379719174,1755383453256,-480.0,0.00021233,2]
[379719175,1755383453265,-480.0,0.00021233,2]
[379719177,1755383453275,-8162.67,0.00021233,2]
[379719179,1755383453284,-480.0,0.00021233,2]
[379719181,1755383453293,-480.0,0.00021233,2]
[379719183,1755383453303,-480.0,0.00021233,2]
[379719185,1755383453312,-522.19,0.00021233,2]
[379719187,1755383453323,-480.0,0.00021233,2]
[379719189,1755383453332,-5769.78,0.00021233,2]
[379719191,1755383453341,-488.1,0.00021233,2]
[379719193,1755383453351,-480.0,0.00021233,2]
[379719195,1755383453360,-480.0,0.00021233,2]
[379719197,1755383453369,-526.58,0.00021233,2]
[379719199,1755383453378,-1154.86,0.00021233,2]
[379719201,1755383453387,-486.21,0.00021233,2]
[379719203,1755383453396,-480.0,0.00021233,2]
[379719205,1755383453406,-414.97117968,0.00021233,2]
[379719207,1755383453415,-1023.8,0.00021233,2]
[379719209,1755383453432,-1010.56,0.00021233,2]
[379719211,1755383453442,-480.0,0.00021233,2]
[379719214,1755383453451,-762.37,0.00021233,2]
[379719216,1755383453462,-480.0,0.00021233,2]
[379719217,1755383453474,-480.0,0.00021233,2]
[379719219,1755383453483,-151.0,0.00021234,2]
[379719222,1755383453493,-151.0,0.00021234,2]
[379719223,1755383453503,-480.0,0.00021234,2]
[379719225,1755383453514,-151.0,0.00021234,2]
[379719227,1755383453524,-2397.19,0.00021235,2]
[379719230,1755383453535,-480.0,0.00021235,2]
[379719232,1755383453546,-2478.71,0.00021235,2]
[379719234,1755383453555,-480.0,0.00021235,2]
[379719236,1755383453564,-151.0,0.00021235,2]
[379719237,1755383453574,-514.47,0.00021237,2]
[379719239,1755383453584,-480.0,0.00021237,2]
[379719242,1755383453593,-151.0,0.00021237,2]
[379719243,1755383453602,-279.69809,0.00021237,2]
[379719246,1755383453612,-151.0,0.00021239,2]
[379719248,1755383453622,-237.658313,0.00021239,2]
[379719250,1755383453631,-237.658313,0.00021239,2]
[379719252,1755383453644,-378.048425,0.00021239,2]
[379719254,1755383453656,-378.048425,0.00021239,2]
[379719256,1755383453666,-293.362164,0.00021241,2]
[379719258,1755383453675,-214.858764,0.00021241,2]
[379719260,1755383453684,-214.858764,0.00021241,2]
[379719261,1755383453693,-151.0,0.00021241,2]
[379719264,1755383453703,-727.170792,0.00021242,2]
[379719265,1755383453712,-727.170792,0.00021242,2]
[379719268,1755383453722,-151.0,0.00021242,2]
[379719270,1755383453731,-151.35984124,0.00021255,2]
[379719271,1755383453743,-151.0,0.00021255,2]
[379719273,1755383453752,-151.0,0.00021255,2]
[379719275,1755383453762,-151.0,0.00021255,2]
[379719277,1755383453771,-151.0,0.00021255,2]
[379719279,1755383453780,-151.0,0.00021255,2]
[379719281,1755383453790,-151.0,0.00021255,2]
[379719283,1755383453799,-159.5875323,0.00021255,2]
[379719285,1755383453808,-151.0,0.00021255,2]
[379719287,1755383453818,-151.0,0.00021255,2]
[379719289,1755383453827,-1106.0,0.00021255,2]
[379719291,1755383453836,-151.0,0.00021255,2]
[379719293,1755383453845,-500.0,0.00021255,2]
[379719295,1755383453854,-151.0,0.00021255,2]
[379719297,1755383453863,-151.0,0.00021255,2]
[379719299,1755383453872,-151.0,0.00021255,2]
[379719301,1755383453882,-151.0,0.00021255,2]
[379719303,1755383453891,-500.0,0.00021255,2]
[379719305,1755383453901,-229.50116457,0.00021255,2]
[379719307,1755383453910,-151.0,0.00021255,2]
[379719309,1755383453920,-500.0,0.00021255,2]
[379719311,1755383453929,-151.0,0.000213,4]
[379719313,1755383453938,-151.0,0.000213,2]
[379719315,1755383453948,-600.0,0.00021303,2]
[379719317,1755383453958,-62853.31616094,0.00021324,2]
[379719320,1755383453968,-1893.26002788,0.00021325,2]
[379719322,1755383453977,-500.0,0.00021369,2]
[379719324,1755383453987,-179.868465,0.00021372,10]
[379719326,1755383453996,-654.1,0.0002138,3]
[379719328,1755383454006,-151.0,0.00021401,2]
[379719330,1755383454015,-151.0,0.00021401,2]
[379719332,1755383454025,-151.0,0.00021401,2]
[379719334,1755383454034,-151.0,0.00021401,2]
[379719336,1755383454043,-172.48783191,0.00021479,2]
[379719337,1755383454052,-172.48783191,0.00021479,2]
[379719340,1755383454062,-350.72,0.00021496,3]
[379719342,1755383454072,-151.0,0.000215,4]
[379719344,1755383454082,-150.0,0.000215,5]
[379719346,1755383454091,-179.868465,0.000215,30]
[379719348,1755383454101,-676.97,0.00021504,2]
[379719350,1755383454110,-615.55,0.00021504,2]
[379719352,1755383454119,-480.0,0.00021504,2]
[379719354,1755383454129,-634.32,0.00021504,2]
[379719356,1755383454138,-1632.4,0.00021504,2]
[379719358,1755383454148,-2204.33,0.00021504,2]
[379719360,1755383454157,-480.0,0.00021504,2]
[379719362,1755383454166,-1659.35,0.00021504,2]
[379719364,1755383454175,-577.74,0.00021504,2]
[379719366,1755383454184,-524.5,0.00021504,2]
[379719368,1755383454193,-779.71,0.00021504,2]
[379719370,1755383454203,-480.0,0.00021504,2]
[379719371,1755383454211,-2362.44,0.00021504,2]
[379719373,1755383454221,-709.36,0.00021504,2]
[379719376,1755383454231,-4481.99,0.00021504,2]
[379719378,1755383454240,-480.0,0.00021504,2]
[379719380,1755383454249,-480.0,0.00021504,2]
[379719382,1755383454259,-946.11,0.00021504,2]
[379719384,1755383454269,-1036.28,0.00021505,2]
[379719386,1755383454278,-518.45,0.00021505,2]
[379719388,1755383454287,-480.0,0.00021505,2]
[379719390,1755383454296,-480.0,0.00021505,2]
[379719392,1755383454306,-1205.63,0.00021505,2]
[379719394,1755383454315,-480.0,0.00021505,2]
[379719395,1755383454323,-151.0,0.00021505,2]
[379719397,1755383454333,-480.0,0.00021505,2]
[379719399,1755383454342,-608.59517411,0.00021505,2]
[379719401,1755383454351,-480.0,0.00021505,2]
[379719403,1755383454360,-480.0,0.00021505,2]
[379719405,1755383454369,-588.5,0.00021505,2]
[379719407,1755383454379,-802.43,0.00021505,2]
[379719409,1755383454388,-854.37,0.00021505,2]
[379719411,1755383454397,-1358.18,0.00021505,2]
[379719413,1755383454407,-789.9,0.00021505,2]
[379719415,1755383454416,-496.73,0.00021505,2]
[379719417,1755383454425,-480.0,0.00021505,2]
[379719419,1755383454435,-1300.78,0.00021505,2]
[379719421,1755383454444,-543.3,0.00021505,2]
[379719423,1755383454453,-480.0,0.00021505,2]
[379719425,1755383454462,-798.37,0.00021505,2]
[379719427,1755383454472,-297.1093805,0.00021505,2]
[379719429,1755383454481,-480.0,0.00021505,2]
[379719431,1755383454490,-151.0,0.00021505,2]
[379719433,1755383454500,-519.09,0.00021505,2]
[379719435,1755383454509,-782.49,0.00021505,2]
[379719437,1755383454518,-954.7,0.00021505,2]
[379719439,1755383454527,-566.02,0.00021505,2]
[379719441,1755383454537,-542.25,0.00021505,2]
[379719443,1755383454546,-759.04,0.00021505,2]
[379719445,1755383454555,-2917.42,0.00021505,2]
[379719447,1755383454565,-480.0,0.00021505,2]
[379719449,1755383454574,-530.19,0.00021505,2]
[379719451,1755383454583,-480.0,0.00021505,2]
[379719453,1755383454593,-658.32,0.00021505,2]
[379719455,1755383454602,-813.14,0.00021505,2]
[379719457,1755383454612,-480.0,0.00021505,2]
[379719459,1755383454621,-599.63,0.00021505,2]
[379719461,1755383454631,-480.0,0.00021505,2]
[379719463,1755383454641,-987.94,0.00021505,2]
[379719465,1755383454654,-480.0,0.00021505,2]
[379719467,1755383454663,-480.0,0.00021505,2]
[379719469,1755383454673,-631.64,0.00021505,2]
[379719471,1755383454683,-8799.71,0.00021505,2]
[379719473,1755383454693,-901.2,0.00021505,2]
[379719475,1755383454702,-463.59700834,0.00021505,2]
[379719477,1755383454711,-480.0,0.00021505,2]
[379719479,1755383454721,-639.74,0.00021505,2]
[379719481,1755383454734,-874.96,0.00021505,2]
[379719483,1755383454744,-765.99,0.00021505,2]
[379719485,1755383454754,-480.0,0.00021505,2]
[379719487,1755383454763,-925.97,0.00021505,2]
[379719489,1755383454773,-758.54,0.00021505,2]
[379719491,1755383454782,-480.0,0.00021505,2]
[379719493,1755383454792,-659.8,0.00021505,2]
[379719495,1755383454801,-480.0,0.00021505,2]
[379719497,1755383454811,-480.0,0.00021505,2]
[379719499,1755383454820,-1069.66,0.00021505,2]
[379719501,1755383454830,-480.0,0.00021506,2]
[379719503,1755383454839,-480.0,0.00021506,2]
[379719505,1755383454848,-480.0,0.00021506,2]
[379719507,1755383454858,-480.0,0.00021506,2]
[379719509,1755383454867,-480.0,0.00021506,2]
[379719511,1755383454876,-509.41,0.00021506,2]
[379719513,1755383454886,-480.0,0.00021506,2]
[379719515,1755383454895,-480.0,0.00021506,2]
[379719517,1755383454905,-1539.09,0.00021506,2]
[379719519,1755383454914,-710.45,0.00021506,2]
[379719521,1755383454923,-614.89,0.00021506,2]
[379719523,1755383454933,-564.94,0.00021506,2]
[379719525,1755383454944,-480.0,0.00021506,2]
[379719527,1755383454953,-480.0,0.00021506,2]
[379719529,1755383454963,-2765.82,0.00021506,2]
[379719531,1755383454971,-480.0,0.00021506,2]
[379719533,1755383454981,-623.9,0.00021506,2]
[379719535,1755383454990,-480.0,0.00021506,2]
[379719537,1755383454999,-480.0,0.00021506,2]
[379719539,1755383455008,-480.0,0.00021506,2]
[379719540,1755383455017,-480.0,0.00021507,2]
[379719543,1755383455027,-480.0,0.00021507,2]
[379719545,1755383455036,-480.0,0.00021507,2]
[379719547,1755383455045,-480.0,0.00021507,2]
[379719549,1755383455054,-480.0,0.00021507,2]
[379719550,1755383455063,-480.0,0.00021507,2]
[379719552,1755383455072,-671.72,0.00021507,2]
[379719554,1755383455081,-480.0,0.00021507,2]
[379719556,1755383455091,-480.0,0.00021507,2]
[379719558,1755383455100,-480.0,0.00021507,2]
[379719560,1755383455109,-480.0,0.00021507,2]
[379719562,1755383455120,-480.0,0.00021507,2]
[379719564,1755383455130,-8162.67,0.00021507,2]
[379719566,1755383455139,-596.69,0.00021507,2]
[379719568,1755383455148,-480.0,0.00021507,2]
[379719570,1755383455158,-480.0,0.00021507,2]
[379719572,1755383455167,-522.19,0.00021507,2]
[379719574,1755383455176,-480.0,0.00021507,2]
[379719576,1755383455186,-5769.78,0.00021507,2]
[379719578,1755383455194,-488.1,0.00021507,2]
[379719580,1755383455204,-480.0,0.00021507,2]
[379719582,1755383455213,-480.0,0.00021507,2]
[379719584,1755383455222,-526.58,0.00021507,2]
[379719586,1755383455231,-1154.86,0.00021507,2]
[379719588,1755383455240,-486.21,0.00021507,2]
[379719590,1755383455250,-480.0,0.00021507,2]
[379719592,1755383455259,-1023.8,0.00021507,2]
[379719594,1755383455269,-1010.56,0.00021507,2]
[379719596,1755383455280,-480.0,0.00021507,2]
[379719598,1755383455289,-762.37,0.00021507,2]
[379719600,1755383455299,-480.0,0.00021507,2]
[379719601,1755383455307,-480.0,0.00021507,2]
[379719603,1755383455316,-480.0,0.00021508,2]
[379719605,1755383455326,-151.83,0.00021508,2]
[379719607,1755383455335,-2397.19,0.00021509,2]
[379719609,1755383455343,-480.0,0.00021509,2]
[379719611,1755383455352,-151.0,0.00021509,2]
[379719613,1755383455361,-2478.71,0.00021509,2]
[379719615,1755383455370,-480.0,0.00021509,2]
[379719617,1755383455379,-151.0,0.00021509,2]
[379719619,1755383455388,-261.047944,0.00021511,2]
[379719621,1755383455397,-280.395717,0.00021511,2]
[379719623,1755383455407,-514.47,0.00021511,2]
[379719625,1755383455416,-480.0,0.00021511,2]
[379719627,1755383455425,-214.858764,0.00021512,2]
[379719629,1755383455435,-214.858764,0.00021512,2]
[379719642,1755383455444,-151.0,0.00021512,2]
[379719645,1755383455561,-272.188908,0.00021512,2]
[379719647,1755383455571,-151.0,0.00021512,2]
[379719649,1755383455579,-1375.62727472,0.00021513,2]
[379719651,1755383455589,-673.07310389,0.00021513,2]
[379719653,1755383455598,-2689.60012314,0.00021513,2]
[379719655,1755383455607,-262.96368455,0.00021513,2]
[379719657,1755383455617,-925.58206212,0.00021513,2]
[379719659,1755383455626,-3698.62592022,0.00021513,2]
[379719661,1755383455635,-550.88361083,0.00021513,2]
[379719663,1755383455645,-2203.53444331,0.00021513,2]
[379719665,1755383455657,-4952.99454496,0.00021513,2]
[379719667,1755383455666,-224.89694971,0.00021513,2]
[379719669,1755383455675,-974.92191377,0.00021513,2]
[379719671,1755383455684,-3895.78796742,0.00021513,2]
[379719672,1755383455693,-151.0,0.00021513,2]
[379719675,1755383455703,-378.048425,0.00021513,2]
[379719677,1755383455713,-378.048425,0.00021513,2]
[379719679,1755383455723,-151.0,0.00021516,2]
[379719681,1755383455731,-151.0,0.00021516,2]
[379719682,1755383455741,-500.0,0.0002152,10]
[379719684,1755383455750,-500.0,0.0002152,10]
[379719686,1755383455759,-500.0,0.0002152,2]
[379719689,1755383455769,-500.0,0.0002152,10]
[379719691,1755383455778,-500.0,0.0002152,2]
[379719693,1755383455787,-500.0,0.0002152,2]
[379719694,1755383455796,-500.0,0.0002152,10]
[379719696,1755383455805,-500.0,0.0002152,2]
[379719698,1755383455814,-500.0,0.0002152,10]
[379719700,1755383455824,-500.0,0.0002152,10]
[379719702,1755383455834,-373.17412531,0.0002152,10]
[379719704,1755383455844,-500.0,0.0002152,2]
[379719706,1755383455853,-500.0,0.00021521,2]
[379719708,1755383455863,-222.15383929,0.00021521,2]
[379719710,1755383455872,-151.0,0.00021522,2]
[379719712,1755383455881,-727.170792,0.00021523,2]
[379719715,1755383455891,-727.170792,0.00021523,2]
[379719717,1755383455901,-151.0,0.00021524,2]
[379719719,1755383455911,-151.0,0.00021524,2]
[379719721,1755383455923,-600.0,0.00021525,2]
[379719723,1755383455935,-151.0,0.00021528,2]
[379719725,1755383455950,-151.0,0.00021529,2]
[379719726,1755383455961,-198.0,0.00021529,2]
[379719728,1755383455973,-151.0,0.00021529,2]
[379719730,1755383455982,-204.13346045,0.00021529,2]
[379719732,1755383455991,-151.0,0.00021529,2]
[379719733,1755383456000,-151.0,0.00021529,2]
[379719734,1755383456009,-151.0,0.00021529,2]
[379719735,1755383456018,-1106.0,0.00021529,2]
[379719736,1755383456028,-151.0,0.00021529,2]
[379719737,1755383456037,-500.0,0.00021529,2]
[379719738,1755383456046,-151.0,0.00021529,2]
[379719739,1755383456054,-151.0,0.00021529,2]
[379719740,1755383456063,-500.0,0.00021529,2]
[379719741,1755383456072,-500.0,0.00021529,2]
[379719742,1755383456081,-151.0,0.00021529,2]
[379719743,1755383456091,-247.730748,0.00021529,2]
[379719744,1755383456099,-260.0,0.00021554,2]
[379719745,1755383456109,-271.0,0.00021567,2]
[379719746,1755383456118,-1500.0,0.00021568,2]
[379719747,1755383456127,-1500.0,0.00021568,2]
[379719748,1755383456137,-1500.0,0.00021568,2]
[379719749,1755383456146,-1500.0,0.00021568,2]
[379719750,1755383456155,-1500.0,0.00021568,2]
[379719751,1755383456163,-1500.0,0.00021568,2]
[379719752,1755383456172,-1500.0,0.00021568,2]
[379719753,1755383456181,-1500.0,0.00021568,2]
[379719754,1755383456190,-1500.0,0.00021568,2]
[379719755,1755383456199,-1500.0,0.00021568,2]
[379719756,1755383456207,-1500.0,0.00021568,2]
[379719757,1755383456217,-500.0,0.00021573,2]
[379719758,1755383456226,-500.0,0.00021573,2]
[379719759,1755383456236,-500.0,0.00021573,2]
[379719760,1755383456245,-500.0,0.00021573,2]